lending/lending_fUSD_20250114
["ID","MTS","AMOUNT","RATE_DAILY","PERIOD"]
[348861810,1736824629020,-1259.28,9.997e-05,2]
[348861811,1736824629045,-500.0,9.997e-05,2]
[348861812,1736824629072,-500.0,9.997e-05,2]
[348861813,1736824629097,-500.0,9.997e-05,2]
[348861814,1736824629123,-2999.77,9.997e-05,2]
[348861815,1736824629148,-1808.33,9.997e-05,2]
[348861816,1736824629172,-500.0,9.997e-05,2]
[348861817,1736824629198,-500.0,9.997e-05,2]
[348861818,1736824629224,-1753.92,9.997e-05,2]
[348861819,1736824629247,-500.0,9.997e-05,2]
[348861820,1736824629271,-1240.26,9.997e-05,2]
[348861821,1736824629294,-500.0,9.997e-05,2]
[348861822,1736824629318,-500.0,9.997e-05,2]
[348861823,1736824629341,-500.0,9.997e-05,2]
[348861824,1736824629371,-1107.11,9.997e-05,2]
[348861825,1736824629398,-4466.1,9.997e-05,2]
[348861826,1736824629423,-500.0,9.997e-05,2]
[348861827,1736824629450,-500.0,9.997e-05,2]
[348861828,1736824629475,-500.0,9.997e-05,2]
[348861829,1736824629501,-500.0,9.997e-05,2]
[348861830,1736824629527,-500.0,9.997e-05,2]
[348861831,1736824629554,-2741.39,9.997e-05,2]
[348861832,1736824629579,-500.0,9.997e-05,2]
[348861833,1736824629605,-500.0,9.997e-05,2]
[348861834,1736824629631,-3552.12,9.997e-05,2]
[348861835,1736824629655,-500.0,9.997e-05,2]
[348861836,1736824629681,-1571.2,9.997e-05,2]
[348861837,1736824629707,-807.55,9.997e-05,2]
[348861838,1736824629733,-3611.53,9.997e-05,2]
[348861839,1736824629758,-856.89,9.997e-05,2]
[348861840,1736824629784,-500.0,9.997e-05,2]
[348861841,1736824629810,-840.9,9.997e-05,2]
[348861842,1736824629837,-500.0,9.997e-05,2]
[348861843,1736824629862,-500.0,9.997e-05,2]
[348861844,1736824629888,-500.0,9.997e-05,2]
[348861845,1736824629913,-535.57,9.997e-05,2]
[348861846,1736824629937,-500.0,9.997e-05,2]
[348861847,1736824629970,-965.52,9.997e-05,2]
[348861848,1736824629997,-500.0,9.997e-05,2]
[348861849,1736824630023,-807.64,9.997e-05,2]
[348861850,1736824630049,-503.66187232,9.997e-05,2]
[348861851,1736824630076,-500.0,9.997e-05,2]
[348861852,1736824630103,-597.5,9.997e-05,2]
[348861853,1736824630128,-500.0,9.997e-05,2]
[348861854,1736824630152,-873.74,9.997e-05,2]
[348861855,1736824630176,-500.0,9.997e-05,2]
[348861856,1736824630203,-500.0,9.997e-05,2]
[348861857,1736824630228,-2604.3,9.997e-05,2]
[348861858,1736824630252,-1823.83,9.997e-05,2]
[348861859,1736824630276,-1779.97,9.997e-05,2]
[348861860,1736824630300,-500.0,9.997e-05,2]
[348861861,1736824630323,-503.69010384,9.997e-05,2]
[348861862,1736824630346,-500.0,9.997e-05,2]
[348861863,1736824630370,-500.0,9.997e-05,2]
[348861864,1736824630393,-500.0,9.997e-05,2]
[348861865,1736824630417,-500.0,9.997e-05,2]
[348861866,1736824630442,-740.92,9.997e-05,2]
[348861867,1736824630466,-500.0,9.997e-05,2]
[348861868,1736824630491,-695.62,9.997e-05,2]
[348861869,1736824630514,-2535.14,9.997e-05,2]
[348861870,1736824630543,-500.0,9.997e-05,2]
[348861871,1736824630567,-2311.3,9.997e-05,2]
[348861872,1736824630593,-2190.84,9.997e-05,2]
[348861873,1736824630618,-701.8,9.997e-05,2]
[348861874,1736824630644,-1093.69,9.997e-05,2]
[348861875,1736824630893,-508.64130954,9.997e-05,2]
[348861876,1736824630918,-500.0,9.997e-05,2]
[348861877,1736824630942,-500.0,9.997e-05,2]
[348861878,1736824630968,-1262.57,9.997e-05,2]
[348861879,1736824630992,-500.0,9.997e-05,2]
[348861880,1736824631017,-500.0,9.997e-05,2]
[348861881,1736824631041,-500.0,9.997e-05,2]
[348861882,1736824631065,-500.0,9.997e-05,2]
[348861883,1736824631088,-500.0,9.997e-05,2]
[348861884,1736824631112,-500.0,9.997e-05,2]
[348861885,1736824631137,-2497.4,9.997e-05,2]
[348861886,1736824631159,-500.0,9.997e-05,2]
[348861887,1736824631182,-500.0,9.997e-05,2]
[348861888,1736824631223,-500.0,9.997e-05,2]
[348861889,1736824631250,-1197.4,9.997e-05,2]
[348861890,1736824631276,-424.71059432,9.997e-05,2]
[348861891,1736824631304,-6638.96,9.997e-05,2]
[348861892,1736824631331,-500.0,9.997e-05,2]
[348861893,1736824631359,-500.0,9.997e-05,2]
[348861894,1736824631387,-781.26,9.997e-05,2]
[348861895,1736824631412,-500.85235797,9.997e-05,2]
[348861896,1736824631437,-500.0,9.997e-05,2]
[348861897,1736824631464,-686.61,9.997e-05,2]
[348861898,1736824631489,-500.0,9.997e-05,2]
[348861899,1736824631514,-500.0,9.997e-05,2]
[348861900,1736824631539,-644.03,9.997e-05,2]
[348861901,1736824631563,-500.0,9.997e-05,2]
[348861902,1736824631587,-557.9,9.997e-05,2]
[348861903,1736824631611,-500.0,9.997e-05,2]
[348861904,1736824631634,-500.0,9.997e-05,2]
[348861905,1736824631661,-2709.16,9.997e-05,2]
[348861906,1736824631685,-837.98,9.997e-05,2]
[348861907,1736824631710,-500.0,9.997e-05,2]
[348861908,1736824631735,-500.0,9.997e-05,2]
[348861909,1736824631764,-500.0,9.997e-05,2]
[348861910,1736824631789,-500.0,9.997e-05,2]
[348861911,1736824631815,-500.0,9.997e-05,2]
[348861912,1736824631840,-500.0,9.997e-05,2]
[348861913,1736824631864,-500.0,9.997e-05,2]
[348861914,1736824631890,-500.0,9.997e-05,2]
[348861915,1736824631918,-500.0,9.997e-05,2]
[348861916,1736824631943,-1136.6,9.997e-05,2]
[348861917,1736824631971,-500.0,9.997e-05,2]
[348861918,1736824631998,-920.99,9.997e-05,2]
[348861919,1736824632028,-724.8,9.997e-05,2]
[348861920,1736824632054,-2185.75,9.997e-05,2]
[348861921,1736824632078,-500.0,9.997e-05,2]
[348861922,1736824632102,-500.0,9.997e-05,2]
[348861923,1736824632127,-2095.52,9.997e-05,2]
[348861924,1736824632152,-500.0,9.997e-05,2]
[348861925,1736824632177,-500.0,9.997e-05,2]
[348861926,1736824632201,-500.0,9.997e-05,2]
[348861927,1736824632226,-634.2164482,9.997e-05,2]
[348861928,1736824632251,-500.0,9.997e-05,2]
[348861929,1736824632275,-507.13656755,9.997e-05,2]
[348861930,1736824632300,-500.0,9.997e-05,2]
[348861931,1736824632325,-2410.03,9.997e-05,2]
[348861932,1736824632348,-500.0,9.998e-05,2]
[348861933,1736824632371,-393.09491882,9.998e-05,2]
[348861934,1736824632395,-500.853547,9.998e-05,2]
[348861935,1736824632419,-500.0,9.998e-05,2]
[348861936,1736824632443,-500.0,9.998e-05,2]
[348861937,1736824632467,-500.0,9.998e-05,2]
[348861938,1736824632491,-343.44124648,9.998e-05,2]
[348861939,1736824632515,-500.0,9.998e-05,2]
[348861940,1736824632539,-500.0,9.998e-05,2]
[348861941,1736824632564,-500.0,9.998e-05,2]
[348861942,1736824632588,-500.0,9.998e-05,2]
[348861943,1736824632613,-500.0,9.998e-05,2]
[348861944,1736824632638,-500.0,9.998e-05,2]
[348861945,1736824632662,-500.0,9.998e-05,2]
[348861946,1736824632688,-500.0,9.998e-05,2]
[348861947,1736824632713,-500.0,9.998e-05,2]
[348861948,1736824632737,-500.0,9.998e-05,2]
[348861949,1736824632763,-500.0,9.998e-05,2]
[348861950,1736824632786,-500.0,9.998e-05,2]
[348861951,1736824632811,-500.0,9.998e-05,2]
[348861952,1736824632836,-500.0,9.998e-05,2]
[348861953,1736824632860,-361.32116056,9.998e-05,2]
[348861954,1736824632883,-500.0,9.998e-05,2]
[348861955,1736824632910,-500.0,9.998e-05,2]
[348861956,1736824632934,-500.0,9.998e-05,2]
[348861957,1736824632958,-500.0,9.998e-05,2]
[348861958,1736824632989,-500.0,9.998e-05,2]
[348861959,1736824633013,-500.0,9.998e-05,2]
[348861960,1736824633037,-500.0,9.998e-05,2]
[348861961,1736824633064,-500.0,9.998e-05,2]
[348861962,1736824633088,-500.0,9.998e-05,2]
[348861963,1736824633111,-500.0,9.998e-05,2]
[348861964,1736824633136,-500.0,9.998e-05,2]
[348861965,1736824633160,-500.0,9.998e-05,2]
[348861966,1736824633185,-3332.75,9.998e-05,2]
[348861967,1736824633211,-500.0,9.998e-05,2]
[348861968,1736824633234,-500.0,9.998e-05,2]
[348861969,1736824633259,-1480.53,9.998e-05,2]
[348861970,1736824633282,-500.0,9.998e-05,2]
[348861971,1736824633306,-500.0,9.998e-05,2]
[348861972,1736824633331,-2439.04,9.998e-05,2]
[348861973,1736824633356,-500.0,9.998e-05,2]
[348861974,1736824633382,-509.73567303,9.998e-05,2]
[348861975,1736824633407,-500.0,9.998e-05,2]
[348861976,1736824633433,-1239.33,9.998e-05,2]
[348861977,1736824633459,-500.0,9.998e-05,2]
[348861978,1736824633483,-500.0,9.998e-05,2]
[348861979,1736824633507,-500.0,9.998e-05,2]
[348861980,1736824633531,-1355.42,9.998e-05,2]
[348861981,1736824633555,-500.0,9.998e-05,2]
[348861982,1736824633580,-500.0,9.998e-05,2]
[348861983,1736824633604,-500.0,9.998e-05,2]
[348861984,1736824633628,-512.31748616,9.998e-05,2]
[348861985,1736824633652,-514.62695789,9.998e-05,2]
[348861986,1736824633676,-887.52,9.998e-05,2]
[348861987,1736824633702,-466.63740572,9.998e-05,2]
[348861988,1736824633727,-585.53,9.998e-05,2]
[348861989,1736824633751,-317.93698093,9.998e-05,2]
[348861990,1736824633775,-500.0,9.998e-05,2]
[348861991,1736824633798,-506.3675767,9.998e-05,2]
[348861992,1736824633822,-500.0,9.998e-05,2]
[348861993,1736824634047,-500.0,9.998e-05,2]
[348861994,1736824634073,-637.53,9.998e-05,2]
[348861995,1736824634097,-500.0,9.998e-05,2]
[348861996,1736824634121,-1614.13,9.998e-05,2]
[348861997,1736824634146,-849.86,9.998e-05,2]
[348861998,1736824634170,-500.0,9.998e-05,2]
[348861999,1736824634193,-500.0,9.998e-05,2]
[348862000,1736824634218,-720.51,9.998e-05,2]
[348862001,1736824634241,-500.0,9.998e-05,2]
[348862002,1736824634265,-500.0,9.998e-05,2]
[348862003,1736824634289,-507.23482251,9.998e-05,2]
[348862004,1736824634314,-505.98594945,9.998e-05,2]
[348862005,1736824634339,-500.0,9.998e-05,2]
[348862006,1736824634362,-504.66688204,9.998e-05,2]
[348862007,1736824634385,-500.0,9.998e-05,2]
[348862008,1736824634410,-327.19311873,9.998e-05,2]
[348862009,1736824634434,-500.0,9.998e-05,2]
[348862010,1736824634459,-845.66,9.998e-05,2]
[348862011,1736824634483,-715.3,9.998e-05,2]
[348862012,1736824634506,-512.77226558,9.998e-05,2]
[348862013,1736824634530,-500.0,9.998e-05,2]
[348862014,1736824634554,-507.2766281,9.998e-05,2]
[348862015,1736824634582,-500.0,9.998e-05,2]
[348862016,1736824634606,-500.0,9.998e-05,2]
[348862017,1736824634630,-500.0,9.998e-05,2]
[348862018,1736824634654,-500.0,9.998e-05,2]
[348862019,1736824634679,-500.0,9.998e-05,2]
[348862020,1736824634704,-500.0,9.998e-05,2]
[348862021,1736824634729,-500.0,9.998e-05,2]
[348862022,1736824634754,-924.7,9.998e-05,2]
[348862023,1736824634779,-507.31803955,9.998e-05,2]
[348862024,1736824634804,-500.0,9.998e-05,2]
[348862025,1736824634829,-506.51151947,9.998e-05,2]
[348862026,1736824634853,-500.0,9.998e-05,2]
[348862027,1736824634878,-572.1,9.998e-05,2]
[348862028,1736824634902,-500.0,9.998e-05,2]
[348862029,1736824634927,-500.0,9.998e-05,2]
[348862030,1736824634952,-500.0,9.998e-05,2]
[348862031,1736824634981,-500.0,9.998e-05,2]
[348862032,1736824635007,-500.0,9.998e-05,2]
[348862033,1736824635035,-500.0,9.998e-05,2]
[348862034,1736824635061,-507.65510404,9.998e-05,2]
[348862035,1736824635085,-500.0,9.998e-05,2]
[348862036,1736824635110,-500.0,9.998e-05,2]
[348862037,1736824635135,-500.0,9.998e-05,2]
[348862038,1736824635159,-500.0,9.998e-05,2]
[348862039,1736824635184,-775.38,9.998e-05,2]
[348862040,1736824635213,-500.0,9.998e-05,2]
[348862041,1736824635240,-500.0,9.998e-05,2]
[348862042,1736824635265,-500.0,9.998e-05,2]
[348862043,1736824635289,-500.0,9.998e-05,2]
[348862044,1736824635313,-500.0,9.998e-05,2]
[348862045,1736824635338,-500.0,9.998e-05,2]
[348862046,1736824635362,-500.0,9.998e-05,2]
[348862047,1736824635387,-593.71776392,9.998e-05,2]
[348862048,1736824635411,-500.0,9.998e-05,2]
[348862049,1736824635436,-500.0,9.998e-05,2]
[348862050,1736824635461,-500.0,9.998e-05,2]
[348862051,1736824635485,-500.0,9.998e-05,2]
[348862052,1736824635510,-150.3649321,9.998e-05,2]
[348862053,1736824635535,-500.0,9.998e-05,2]
[348862054,1736824635559,-500.0,9.998e-05,2]
[348862055,1736824635582,-500.0,9.998e-05,2]
[348862056,1736824635606,-500.0,9.998e-05,2]
[348862057,1736824635630,-501.6654751,9.998e-05,2]
[348862058,1736824635655,-500.0,9.998e-05,2]
[348862059,1736824635679,-500.0,9.998e-05,2]
[348862060,1736824635704,-500.0,9.998e-05,2]
[348862061,1736824635730,-500.0,9.998e-05,2]
[348862062,1736824635756,-689.9,9.998e-05,2]
[348862063,1736824635781,-516.45,9.998e-05,2]
[348862064,1736824635807,-500.0,9.998e-05,2]
[348862065,1736824635832,-500.0,9.998e-05,2]
[348862066,1736824635858,-500.0,9.998e-05,2]
[348862067,1736824635883,-500.0,9.998e-05,2]
[348862068,1736824635907,-500.0,9.998e-05,2]
[348862069,1736824635932,-500.0,9.998e-05,2]
[348862070,1736824635957,-1642.95,9.998e-05,2]
[348862071,1736824635989,-652.2,9.998e-05,2]
[348862072,1736824636015,-500.0,9.998e-05,2]
[348862073,1736824636045,-500.0,9.998e-05,2]
[348862074,1736824636074,-500.0,9.998e-05,2]
[348862075,1736824636099,-500.0,9.998e-05,2]
[348862076,1736824636124,-500.0,9.998e-05,2]
[348862077,1736824636148,-503.4137371,9.998e-05,2]
[348862078,1736824636172,-501.14079285,9.998e-05,2]
[348862079,1736824636196,-500.0,9.998e-05,2]
[348862080,1736824636221,-500.0,9.998e-05,2]
[348862081,1736824636245,-1058.37,9.998e-05,2]
[348862082,1736824636268,-504.35872982,9.998e-05,2]
[348862083,1736824636292,-500.0,9.998e-05,2]
[348862084,1736824636316,-500.0,9.998e-05,2]
[348862085,1736824636341,-500.0,9.998e-05,2]
[348862086,1736824636364,-500.0,9.998e-05,2]
[348862087,1736824636389,-688.7,9.998e-05,2]
[348862088,1736824636414,-500.0,9.998e-05,2]
[348862089,1736824636441,-500.0,9.998e-05,2]
[348862090,1736824636468,-500.0,9.998e-05,2]
[348862091,1736824636494,-500.0,9.998e-05,2]
[348862092,1736824636520,-500.0,9.998e-05,2]
[348862093,1736824636544,-500.0,9.998e-05,2]
[348862094,1736824636568,-500.0,9.998e-05,2]
[348862095,1736824636591,-500.0,9.998e-05,2]
[348862096,1736824636615,-502.39208437,9.998e-05,2]
[348862097,1736824636639,-500.0,9.998e-05,2]
[348862098,1736824636664,-500.0,9.998e-05,2]
[348862099,1736824636688,-500.0,9.998e-05,2]
[348862100,1736824636713,-500.0,9.998e-05,2]
[348862101,1736824636738,-500.0,9.998e-05,2]
[348862102,1736824636763,-1343.93,9.998e-05,2]
[348862103,1736824636787,-500.0,9.998e-05,2]
[348862104,1736824636811,-500.0,9.998e-05,2]
[348862105,1736824636835,-500.0,9.998e-05,2]
[348862106,1736824636860,-500.0,9.998e-05,2]
[348862107,1736824636885,-500.0,9.998e-05,2]
[348862108,1736824636910,-500.0,9.998e-05,2]
[348862109,1736824636936,-500.0,9.998e-05,2]
[348862110,1736824636961,-500.0,9.998e-05,2]
[348862111,1736824636989,-500.0,9.998e-05,2]
[348862112,1736824637203,-500.0,9.998e-05,2]
[348862113,1736824637227,-1911.87,9.998e-05,2]
[348862114,1736824637251,-500.0,9.998e-05,2]
[348862115,1736824637275,-500.0,9.998e-05,2]
[348862116,1736824637299,-500.0,9.998e-05,2]
[348862117,1736824637323,-500.0,9.998e-05,2]
[348862118,1736824637347,-500.0,9.998e-05,2]
[348862119,1736824637370,-500.0,9.998e-05,2]
[348862120,1736824637394,-502.88142017,9.998e-05,2]
[348862121,1736824637418,-500.0,9.998e-05,2]
[348862122,1736824637443,-500.0,9.998e-05,2]
[348862123,1736824637467,-500.0,9.998e-05,2]
[348862124,1736824637491,-500.0,9.998e-05,2]
[348862125,1736824637515,-510.47032541,9.998e-05,2]
[348862126,1736824637541,-500.0,9.998e-05,2]
[348862127,1736824637564,-1511.22,9.998e-05,2]
[348862128,1736824637590,-500.0,9.998e-05,2]
[348862129,1736824637614,-500.0,9.998e-05,2]
[348862130,1736824637638,-659.24,9.998e-05,2]
[348862131,1736824637663,-500.0,9.998e-05,2]
[348862132,1736824637686,-500.0,9.998e-05,2]
[348862133,1736824637711,-500.0,9.998e-05,2]
[348862134,1736824637735,-500.0,9.998e-05,2]
[348862135,1736824637760,-500.0,9.998e-05,2]
[348862136,1736824637784,-500.0,9.998e-05,2]
[348862137,1736824637809,-500.0,9.998e-05,2]
[348862138,1736824637835,-500.0,9.998e-05,2]
[348862139,1736824637876,-500.0,9.998e-05,2]
[348862140,1736824637902,-1948.09,9.998e-05,2]
[348862141,1736824637927,-405.40008065,9.998e-05,2]
[348862142,1736824637952,-500.0,9.998e-05,2]
[348862143,1736824637979,-500.0,9.998e-05,2]
[348862144,1736824638004,-500.0,9.998e-05,2]
[348862145,1736824638032,-500.0,9.998e-05,2]
[348862146,1736824638059,-500.0,9.998e-05,2]
[348862147,1736824638085,-500.0,9.998e-05,2]
[348862148,1736824638110,-500.0,9.998e-05,2]
[348862149,1736824638135,-500.0,9.998e-05,2]
[348862150,1736824638160,-536.58826318,9.998e-05,2]
[348862151,1736824638184,-500.0,9.998e-05,2]
[348862152,1736824638209,-500.0,9.998e-05,2]
[348862153,1736824638235,-500.0,9.998e-05,2]
[348862154,1736824638261,-3478.17,9.998e-05,2]
[348862155,1736824638286,-500.0,9.998e-05,2]
[348862156,1736824638310,-500.0,9.998e-05,2]
[348862157,1736824638335,-500.0,9.998e-05,2]
[348862158,1736824638359,-500.0,9.998e-05,2]
[348862159,1736824638384,-500.0,9.998e-05,2]
[348862160,1736824638409,-500.0,9.998e-05,2]
[348862161,1736824638433,-503.97630351,9.998e-05,2]
[348862162,1736824638458,-502.98465341,9.998e-05,2]
[348862163,1736824638483,-500.0,9.998e-05,2]
[348862164,1736824638511,-500.0,9.998e-05,2]
[348862165,1736824638536,-500.0,9.998e-05,2]
[348862166,1736824638562,-8286.13,9.998e-05,2]
[348862167,1736824638587,-711.27,9.998e-05,2]
[348862168,1736824638611,-500.0,9.998e-05,2]
[348862169,1736824638635,-500.0,9.998e-05,2]
[348862170,1736824638659,-501.94252067,9.998e-05,2]
[348862171,1736824638683,-628.02,9.998e-05,2]
[348862172,1736824638707,-497.28275891,9.998e-05,2]
[348862173,1736824638731,-500.0,9.998e-05,2]
[348862174,1736824638755,-500.0,9.998e-05,2]
[348862175,1736824638779,-500.0,9.998e-05,2]
[348862176,1736824638803,-500.0,9.998e-05,2]
[348862177,1736824638828,-500.0,9.998e-05,2]
[348862178,1736824638856,-500.0,9.998e-05,2]
[348862179,1736824638880,-500.0,9.998e-05,2]
[348862180,1736824638903,-500.0,9.998e-05,2]
[348862181,1736824638927,-500.0,9.998e-05,2]
[348862182,1736824638956,-500.0,9.998e-05,2]
[348862183,1736824638983,-604.25,9.998e-05,2]
[348862184,1736824639008,-500.0,9.998e-05,2]
[348862185,1736824639033,-500.0,9.998e-05,2]
[348862186,1736824639058,-500.0,9.998e-05,2]
[348862187,1736824639082,-500.0,9.998e-05,2]
[348862188,1736824639106,-1172.15,9.998e-05,2]
[348862189,1736824639129,-502.897915,9.998e-05,2]
[348862190,1736824639152,-500.0,9.998e-05,2]
[348862191,1736824639176,-500.0,9.998e-05,2]
[348862192,1736824639199,-500.0,9.998e-05,2]
[348862193,1736824639222,-505.58248677,9.998e-05,2]
[348862194,1736824639247,-577.07,9.998e-05,2]
[348862195,1736824639271,-153.073,9.999e-05,2]
[348862196,1736824639295,-500.0,9.999e-05,2]
[348862197,1736824639319,-500.0,9.999e-05,2]
[348862198,1736824639343,-1624.89,9.999e-05,2]
[348862199,1736824639370,-3801.96,9.999e-05,2]
[348862200,1736824639395,-272.65057532,9.999e-05,2]
[348862201,1736824639420,-775.58,9.999e-05,2]
[348862202,1736824639445,-1930.37,9.999e-05,2]
[348862203,1736824639469,-643.0,0.0001,2]
[348862204,1736824639499,-399261.26830685,0.0001,2]
[348862205,1736824642646,-500.0,9.882e-05,2]
[348862206,1736824642671,-3979.0,9.988e-05,2]
[348862207,1736824642696,-500.0,9.997e-05,2]
[348862208,1736824642723,-384.62835361,9.997e-05,2]
[348862209,1736824642753,-94636.37164639,0.0001,2]
[348862210,1736824662170,-1418.84,9.881e-05,2]
[348862211,1736824662196,-1333.75,9.881e-05,2]
[348862212,1736824662223,-1392.39,9.881e-05,2]
[348862213,1736824662249,-500.0,9.997e-05,2]
[348862214,1736824662273,-500.0,9.997e-05,2]
[348862215,1736824662298,-500.0,9.997e-05,2]
[348862216,1736824662324,-3727.04,9.997e-05,2]
[348862217,1736824662349,-814.45,9.997e-05,2]
[348862218,1736824662374,-500.0,9.997e-05,2]
[348862219,1736824662400,-500.0,9.997e-05,2]
[348862220,1736824662424,-500.0,9.997e-05,2]
[348862221,1736824662449,-500.0,9.997e-05,2]
[348862222,1736824662474,-500.0,9.998e-05,2]
[348862223,1736824662499,-500.0,9.998e-05,2]
[348862224,1736824662523,-579.0,0.0001,2]
[348862225,1736824662552,-986234.53,0.0001,2]
[348862227,1736824672872,-500.0,9.997e-05,2]
[348862228,1736824672898,-500.0,9.997e-05,2]
[348862229,1736824672924,-500.0,9.997e-05,2]
[348862230,1736824672951,-690.49,9.997e-05,2]
[348862231,1736824672979,-1134.87,9.997e-05,2]
[348862232,1736824673008,-500.0,9.998e-05,2]
[348862233,1736824673035,-743.27,9.998e-05,2]
[348862234,1736824673065,-500.0,9.998e-05,2]
[348862235,1736824673092,-500.0,9.998e-05,2]
[348862236,1736824673118,-1217.47,9.999e-05,2]
[348862237,1736824673144,-529.0,0.0001,2]
[348862238,1736824673175,-992684.9,0.0001,2]
[348862242,1736825009476,648.67,8.219e-05,2]
[348862255,1736825274123,1164.48,0.00023,120]
[348862280,1736825437551,-250.0,9.118e-05,2]
[348862281,1736825437560,-293.18,9.143e-05,2]
[348862282,1736825437569,-167.19,9.157e-05,2]
[348862283,1736825437579,-200.0,9.172e-05,2]
[348862284,1736825437588,-1000.0,9.189e-05,2]
[348862285,1736825437597,-171.709,9.5e-05,2]
[348862286,1736825437607,-167.08,9.707e-05,2]
[348862287,1736825437616,-3951.9801,9.858e-05,2]
[348862288,1736825437627,-300.0,9.88e-05,2]
[348862289,1736825437636,-1287.94,9.881e-05,2]
[348862290,1736825437647,-1789.13,9.881e-05,2]
[348862291,1736825437656,-3194.36,9.881e-05,2]
[348862292,1736825437666,-7940.87,9.881e-05,2]
[348862293,1736825437675,-660.0,9.881e-05,2]
[348862294,1736825437684,-992.61,9.881e-05,2]
[348862295,1736825437693,-1574.49,9.881e-05,2]
[348862296,1736825437702,-1123.32,9.881e-05,2]
[348862297,1736825437711,-815.6572406,9.992e-05,2]
[348862298,1736825437722,-2996.4574883,9.992e-05,2]
[348862299,1736825437731,-824.7107845,9.993e-05,2]
[348862300,1736825437740,-833.7643284,9.993e-05,2]
[348862301,1736825437750,-3041.7339734,9.993e-05,2]
[348862302,1736825437759,-3087.0104585,9.993e-05,2]
[348862303,1736825437769,-500.0,9.997e-05,2]
[348862304,1736825437779,-500.0,9.997e-05,2]
[348862305,1736825437788,-500.0,9.997e-05,2]
[348862306,1736825437801,-1557.18,9.997e-05,2]
[348862307,1736825437810,-500.0,9.997e-05,2]
[348862308,1736825437820,-500.0,9.997e-05,2]
[348862309,1736825437830,-500.0,9.997e-05,2]
[348862310,1736825437839,-500.0,9.997e-05,2]
[348862311,1736825437849,-500.0,9.997e-05,2]
[348862312,1736825437859,-500.0,9.997e-05,2]
[348862313,1736825437870,-500.0,9.997e-05,2]
[348862314,1736825437879,-500.0,9.997e-05,2]
[348862315,1736825437889,-500.0,9.997e-05,2]
[348862316,1736825437899,-500.0,9.997e-05,2]
[348862317,1736825437909,-500.0,9.997e-05,2]
[348862318,1736825437919,-3643.54,9.997e-05,2]
[348862319,1736825437928,-495.0,9.997e-05,2]
[348862320,1736825437938,-500.0,9.997e-05,2]
[348862321,1736825437947,-500.0,9.997e-05,2]
[348862322,1736825437957,-500.0,9.997e-05,2]
[348862323,1736825437967,-153.05938495,9.997e-05,2]
[348862324,1736825437976,-590.95459847,9.997e-05,2]
[348862325,1736825437987,-500.0,9.997e-05,2]
[348862326,1736825437996,-500.0,9.997e-05,2]
[348862327,1736825438005,-500.0,9.997e-05,2]
[348862328,1736825438015,-500.0,9.997e-05,2]
[348862329,1736825438025,-500.0,9.997e-05,2]
[348862330,1736825438034,-500.0,9.997e-05,2]
[348862331,1736825438044,-500.0,9.997e-05,2]
[348862332,1736825438053,-637.7,9.997e-05,2]
[348862333,1736825438063,-500.0,9.997e-05,2]
[348862334,1736825438073,-501.80877204,9.997e-05,2]
[348862335,1736825438082,-500.0,9.997e-05,2]
[348862336,1736825438092,-500.0,9.997e-05,2]
[348862337,1736825438101,-500.0,9.997e-05,2]
[348862338,1736825438110,-503.17237783,9.997e-05,2]
[348862339,1736825438121,-503.0144828,9.997e-05,2]
[348862340,1736825438130,-500.0,9.997e-05,2]
[348862341,1736825438140,-506.78979088,9.997e-05,2]
[348862342,1736825438151,-500.0,9.997e-05,2]
[348862343,1736825438161,-500.0,9.997e-05,2]
[348862344,1736825438170,-500.0,9.997e-05,2]
[348862345,1736825438180,-503.48874599,9.997e-05,2]
[348862346,1736825438190,-500.0,9.997e-05,2]
[348862347,1736825438199,-500.0,9.997e-05,2]
[348862348,1736825438209,-500.0,9.997e-05,2]
[348862349,1736825438219,-500.0,9.997e-05,2]